[Event "Live Chess"]
[Site "Chess.com"]
[Date "2023.05.21"]
[Round "-"]
[White "raminguy"]
[Black "LutherSullivan"]
[Result "1-0"]
[WhiteElo "1950"]
[BlackElo "2194"]
[TimeControl "300"]
[EndTime "21:13:08 PDT"]
[Termination "raminguy won on time"]

1. d4 {[%clk 0:04:58.9]} 1... Nf6 {[%clk 0:04:58.1]} 2. Nc3 {[%clk 0:04:58.3]}
2... d6 {[%clk 0:04:56.8]} 3. Bf4 {[%clk 0:04:56.5]} 3... Nbd7 {[%clk
0:04:52.4]} 4. Nf3 {[%clk 0:04:53.4]} 4... Nh5 {[%clk 0:04:50]} 5. Bg5 {[%clk
0:04:50.1]} 5... h6 {[%clk 0:04:47.3]} 6. Bh4 {[%clk 0:04:48.6]} 6... g5 {[%clk
0:04:45.9]} 7. Bg3 {[%clk 0:04:47.3]} 7... Bg7 {[%clk 0:04:44.5]} 8. e3 {[%clk
0:04:44.2]} 8... c6 {[%clk 0:04:35.5]} 9. Bd3 {[%clk 0:04:38]} 9... O-O {[%clk
0:04:32.5]} 10. Nxg5 {[%clk 0:04:30.9]} 10... Ndf6 {[%clk 0:04:19.5]} 11. Nh7
{[%clk 0:04:01.7]} 11... Re8 {[%clk 0:03:59.5]} 12. Nxf6+ {[%clk 0:03:56.8]}
12... Nxf6 {[%clk 0:03:57.3]} 13. O-O {[%clk 0:03:48.7]} 13... b5 {[%clk
0:03:52.1]} 14. Ne4 {[%clk 0:03:45]} 14... e5 {[%clk 0:03:36.1]} 15. dxe5 {[%clk
0:03:41.1]} 15... dxe5 {[%clk 0:03:33.8]} 16. Nxf6+ {[%clk 0:03:34]} 16... Qxf6
{[%clk 0:03:31.2]} 17. Be4 {[%clk 0:03:16.3]} 17... Bf5 {[%clk 0:03:16.8]} 18.
Bxf5 {[%clk 0:03:08.5]} 18... Qxf5 {[%clk 0:03:16.3]} 19. c3 {[%clk 0:03:04.4]}
19... Rad8 {[%clk 0:03:13.4]} 20. Qe2 {[%clk 0:02:57.3]} 20... Rd6 {[%clk
0:03:00.2]} 21. Rfd1 {[%clk 0:02:53.7]} 21... Red8 {[%clk 0:02:58.3]} 22. Rxd6
{[%clk 0:02:51.8]} 22... Rxd6 {[%clk 0:02:57.8]} 23. Rd1 {[%clk 0:02:50.8]}
23... Qd7 {[%clk 0:02:56.9]} 24. Rxd6 {[%clk 0:02:46.8]} 24... Qxd6 {[%clk
0:02:51.7]} 25. h3 {[%clk 0:02:43.9]} 25... Qd5 {[%clk 0:02:43.7]} 26. Qg4
{[%clk 0:02:35.1]} 26... e4 {[%clk 0:02:06.5]} 27. Bh4 {[%clk 0:02:26.8]} 27...
Kh7 {[%clk 0:01:54]} 28. Kh2 {[%clk 0:02:21.2]} 28... f5 {[%clk 0:01:48.5]} 29.
Qh5 {[%clk 0:02:19.1]} 29... Qe6 {[%clk 0:01:40]} 30. a3 {[%clk 0:02:06.1]}
30... a5 {[%clk 0:01:38]} 31. Bg3 {[%clk 0:02:01.3]} 31... a4 {[%clk 0:01:33.9]}
32. Bf4 {[%clk 0:01:58.7]} 32... c5 {[%clk 0:01:14.9]} 33. g4 {[%clk 0:01:46.8]}
33... fxg4 {[%clk 0:01:08.4]} 34. hxg4 {[%clk 0:01:45]} 34... b4 {[%clk
0:01:01.3]} 35. axb4 {[%clk 0:01:42.7]} 35... cxb4 {[%clk 0:00:58.3]} 36. Qa5
{[%clk 0:01:04.4]} 36... a3 {[%clk 0:00:30.3]} 37. Qxb4 {[%clk 0:00:43.5]} 37...
a2 {[%clk 0:00:26.5]} 38. Qa4 {[%clk 0:00:41.6]} 38... Kh8 {[%clk 0:00:14.6]}
39. c4 {[%clk 0:00:36.2]} 39... Qxg4 {[%clk 0:00:12.9]} 40. Qa8+ {[%clk
0:00:34.5]} 40... Kh7 {[%clk 0:00:11.4]} 41. Qxa2 {[%clk 0:00:30.3]} 41... Qh4+
{[%clk 0:00:09.8]} 42. Kg2 {[%clk 0:00:28.3]} 42... Qg4+ {[%clk 0:00:09.4]} 43.
Bg3 {[%clk 0:00:26.7]} 43... Qf3+ {[%clk 0:00:08.5]} 44. Kh2 {[%clk 0:00:24.4]}
44... Qh5+ {[%clk 0:00:07.8]} 45. Kg1 {[%clk 0:00:23.7]} 45... Qd1+ {[%clk
0:00:07.4]} 46. Kg2 {[%clk 0:00:23.1]} 46... Qf3+ {[%clk 0:00:06.8]} 47. Kh2
{[%clk 0:00:22.8]} 47... Be5 {[%clk 0:00:04]} 48. Qa7+ {[%clk 0:00:18.4]} 48...
Kg6 {[%clk 0:00:03.5]} 49. Qb6+ {[%clk 0:00:17.3]} 49... Kf5 {[%clk 0:00:02.9]}
50. Bxe5 {[%clk 0:00:13.8]} 50... Qxf2+ {[%clk 0:00:02.2]} 51. Kh3 {[%clk
0:00:12.3]} 51... Qf1+ {[%clk 0:00:01.4]} 52. Kh4 {[%clk 0:00:10.2]} 52... Qh1+
{[%clk 0:00:00.4]} 53. Kg3 {[%clk 0:00:08.9]} 1-0

[Event "Live Chess"]
[Site "Chess.com"]
[Date "2023.05.21"]
[Round "-"]
[White "matt1979"]
[Black "Conradical12"]
[Result "0-1"]
[WhiteElo "1494"]
[BlackElo "1650"]
[TimeControl "300"]
[EndTime "21:13:20 PDT"]
[Termination "Conradical12 won by resignation"]

1. f4 {[%clk 0:04:59]} 1... Nc6 {[%clk 0:04:53.3]} 2. Nf3 {[%clk 0:04:56.8]}
2... e6 {[%clk 0:04:50.8]} 3. e3 {[%clk 0:04:55]} 3... h5 {[%clk 0:04:48.1]} 4.
Bb5 {[%clk 0:04:42.9]} 4... Nge7 {[%clk 0:04:40.6]} 5. O-O {[%clk 0:04:40.4]}
5... h4 {[%clk 0:04:35.9]} 6. h3 {[%clk 0:04:39.3]} 6... b6 {[%clk 0:04:31.8]}
7. Qe1 {[%clk 0:04:36.8]} 7... Nf5 {[%clk 0:04:28.5]} 8. Nh2 {[%clk 0:04:19.3]}
8... Ng3 {[%clk 0:04:24.6]} 9. Rf3 {[%clk 0:04:17.5]} 9... Bb7 {[%clk
0:04:17.7]} 10. e4 {[%clk 0:04:12.8]} 10... Nd4 {[%clk 0:04:10.4]} 11. Be2
{[%clk 0:03:52.1]} 11... Ndxe2+ {[%clk 0:04:05.1]} 0-1

[Event "Live Chess"]
[Site "Chess.com"]
[Date "2023.05.21"]
[Round "-"]
[White "Bob2pen"]
[Black "Tushinskiy"]
[Result "0-1"]
[WhiteElo "1827"]
[BlackElo "2214"]
[TimeControl "300"]
[EndTime "21:13:38 PDT"]
[Termination "Tushinskiy won by resignation"]

1. c4 {[%clk 0:04:56.5]} 1... c5 {[%clk 0:04:58.7]} 2. g3 {[%clk 0:04:55.3]}
2... d6 {[%clk 0:04:58.6]} 3. Bg2 {[%clk 0:04:54.5]} 3... Nc6 {[%clk 0:04:58.5]}
4. Nf3 {[%clk 0:04:53.3]} 4... Nf6 {[%clk 0:04:58]} 5. O-O {[%clk 0:04:51.7]}
5... g6 {[%clk 0:04:57.9]} 6. Nc3 {[%clk 0:04:50.4]} 6... Bg7 {[%clk 0:04:57.8]}
7. d3 {[%clk 0:04:49.3]} 7... O-O {[%clk 0:04:56.8]} 8. Rb1 {[%clk 0:04:46.9]}
8... Bg4 {[%clk 0:04:55.3]} 9. a3 {[%clk 0:04:45.4]} 9... a5 {[%clk 0:04:54.6]}
10. h3 {[%clk 0:04:38.5]} 10... Bd7 {[%clk 0:04:53]} 11. Kh2 {[%clk 0:04:37.4]}
11... Rb8 {[%clk 0:04:51.6]} 12. Nb5 {[%clk 0:04:28.3]} 12... Re8 {[%clk
0:04:47.5]} 13. e3 {[%clk 0:04:26.5]} 13... e5 {[%clk 0:04:45.8]} 14. d4 {[%clk
0:04:18.8]} 14... cxd4 {[%clk 0:04:42.4]} 15. exd4 {[%clk 0:04:17.7]} 15... e4
{[%clk 0:04:41.6]} 16. Ng5 {[%clk 0:04:07]} 16... Bf5 {[%clk 0:04:40]} 17. Be3
{[%clk 0:03:56.2]} 17... h6 {[%clk 0:04:37.7]} 18. g4 {[%clk 0:03:51]} 18...
Bxg4 {[%clk 0:04:27.4]} 19. hxg4 {[%clk 0:03:47.6]} 19... hxg5 {[%clk
0:04:26.5]} 20. Bxg5 {[%clk 0:03:41.6]} 20... d5 {[%clk 0:04:25.8]} 21. c5
{[%clk 0:03:34.2]} 21... b6 {[%clk 0:04:19.4]} 22. Nd6 {[%clk 0:03:32.1]} 22...
bxc5 {[%clk 0:04:16.7]} 23. Nxe8 {[%clk 0:03:30.3]} 23... Qxe8 {[%clk
0:04:16.1]} 24. dxc5 {[%clk 0:03:28.5]} 24... Qe5+ {[%clk 0:04:15.1]} 25. Kg1
{[%clk 0:03:16.5]} 25... Qxg5 {[%clk 0:04:12.6]} 26. b4 {[%clk 0:03:13.4]} 26...
axb4 {[%clk 0:04:11.1]} 27. axb4 {[%clk 0:03:12.3]} 27... Nxg4 {[%clk
0:04:05.3]} 0-1

[Event "Live Chess"]
[Site "Chess.com"]
[Date "2023.05.21"]
[Round "-"]
[White "Biranidun"]
[Black "ViktorTheCoolBoy"]
[Result "1-0"]
[WhiteElo "2533"]
[BlackElo "2487"]
[TimeControl "300"]
[EndTime "21:13:56 PDT"]
[Termination "Biranidun won by resignation"]

1. e4 {[%clk 0:04:59.5]} 1... c6 {[%clk 0:04:57.2]} 2. d4 {[%clk 0:04:58.6]}
2... d5 {[%clk 0:04:56.7]} 3. e5 {[%clk 0:04:58.3]} 3... c5 {[%clk 0:04:55]} 4.
dxc5 {[%clk 0:04:58.2]} 4... e6 {[%clk 0:04:53.2]} 5. a3 {[%clk 0:04:57.9]} 5...
Bxc5 {[%clk 0:04:51.4]} 6. Nf3 {[%clk 0:04:57.6]} 6... Ne7 {[%clk 0:04:49]} 7.
b4 {[%clk 0:04:57.1]} 7... Bb6 {[%clk 0:04:47.7]} 8. Bb2 {[%clk 0:04:56.9]} 8...
Ng6 {[%clk 0:04:46.5]} 9. Bd3 {[%clk 0:04:55.8]} 9... a5 {[%clk 0:04:45.1]} 10.
Nbd2 {[%clk 0:04:53.8]} 10... O-O {[%clk 0:04:39.9]} 11. h4 {[%clk 0:04:47.9]}
11... Nf4 {[%clk 0:04:35.9]} 12. Bf1 {[%clk 0:04:46.4]} 12... axb4 {[%clk
0:04:24.5]} 13. g3 {[%clk 0:04:44.8]} 13... Ng6 {[%clk 0:04:20.4]} 14. h5 {[%clk
0:04:42.8]} 14... Ne7 {[%clk 0:04:18.9]} 15. axb4 {[%clk 0:04:42.2]} 15... Rxa1
{[%clk 0:04:17.3]} 16. Qxa1 {[%clk 0:04:42.1]} 16... Nbc6 {[%clk 0:04:15.9]} 17.
Qa3 {[%clk 0:04:39.8]} 17... h6 {[%clk 0:04:11.8]} 18. Bd3 {[%clk 0:04:38.5]}
18... Bd7 {[%clk 0:04:05.5]} 19. g4 {[%clk 0:04:33.3]} 19... Qa8 {[%clk
0:04:03.2]} 20. b5 {[%clk 0:04:28.4]} 20... Qxa3 {[%clk 0:03:43]} 21. Bxa3
{[%clk 0:04:28.3]} 21... Ra8 {[%clk 0:03:41.6]} 22. Nb1 {[%clk 0:04:24.3]} 22...
d4 {[%clk 0:03:26.3]} 23. bxc6 {[%clk 0:04:19.2]} 23... Bxc6 {[%clk 0:03:24.3]}
24. Bxe7 {[%clk 0:04:12.6]} 24... Bxf3 {[%clk 0:03:22.4]} 25. O-O {[%clk
0:03:32.6]} 25... Bxg4 {[%clk 0:03:19]} 26. Nd2 {[%clk 0:03:32.2]} 26... Bxh5
{[%clk 0:03:17.1]} 27. Rb1 {[%clk 0:03:31.1]} 27... Ba5 {[%clk 0:03:15.1]} 28.
Nc4 {[%clk 0:03:22.3]} 28... Bc3 {[%clk 0:03:14.1]} 29. Kg2 {[%clk 0:03:18.3]}
29... Bg6 {[%clk 0:02:04.2]} 30. Bxg6 {[%clk 0:02:51.5]} 30... fxg6 {[%clk
0:02:04.1]} 31. Rxb7 {[%clk 0:02:50.7]} 31... Ra2 {[%clk 0:02:02.5]} 32. Nd6
{[%clk 0:02:31.3]} 32... Rxc2 {[%clk 0:01:46.4]} 33. Bf6 {[%clk 0:01:34.1]}
33... gxf6 {[%clk 0:01:10.4]} 34. exf6 {[%clk 0:01:34]} 34... Rb2 {[%clk
0:01:05.5]} 35. Rg7+ {[%clk 0:01:25.7]} 35... Kf8 {[%clk 0:01:04.2]} 36. Rh7
{[%clk 0:01:18.4]} 36... Kg8 {[%clk 0:01:01.5]} 37. f7+ {[%clk 0:01:14.8]} 37...
Kxh7 {[%clk 0:01:00]} 38. f8=Q {[%clk 0:01:14.4]} 38... d3 {[%clk 0:00:57.6]}
39. Qe7+ {[%clk 0:01:05]} 39... Bg7 {[%clk 0:00:56.4]} 40. Ne8 {[%clk
0:01:04.1]} 1-0

[Event "Live Chess"]
[Site "Chess.com"]
[Date "2023.05.21"]
[Round "-"]
[White "Bakunian2022"]
[Black "chessfiction"]
[Result "0-1"]
[WhiteElo "761"]
[BlackElo "2353"]
[TimeControl "300"]
[EndTime "21:14:14 PDT"]
[Termination "chessfiction won by resignation"]

1. e4 {[%clk 0:04:56.4]} 1... e5 {[%clk 0:04:59.6]} 2. Nf3 {[%clk 0:04:55.4]}
2... Nc6 {[%clk 0:04:58.1]} 3. Bc4 {[%clk 0:04:54.6]} 3... Nf6 {[%clk
0:04:54.5]} 4. d3 {[%clk 0:04:53.7]} 4... Bc5 {[%clk 0:04:52.4]} 5. c3 {[%clk
0:04:52.9]} 5... d6 {[%clk 0:04:50.5]} 6. a4 {[%clk 0:04:50]} 6... Bg4 {[%clk
0:04:46.8]} 7. b4 {[%clk 0:04:48.3]} 7... d5 {[%clk 0:04:40.6]} 8. exd5 {[%clk
0:04:27.8]} 8... e4 {[%clk 0:04:35.8]} 9. dxe4 {[%clk 0:04:18.2]} 9... Ne5
{[%clk 0:04:31.2]} 10. Be2 {[%clk 0:04:07.5]} 10... Bxf3 {[%clk 0:04:25.2]} 11.
Bxf3 {[%clk 0:03:57.8]} 11... Bd6 {[%clk 0:04:24]} 12. O-O {[%clk 0:03:50.6]}
12... h5 {[%clk 0:04:14.9]} 13. Bg5 {[%clk 0:03:48.7]} 13... Qd7 {[%clk
0:04:12.7]} 14. Bxf6 {[%clk 0:03:46.1]} 14... gxf6 {[%clk 0:04:12.6]} 15. Nd2
{[%clk 0:03:34.4]} 15... O-O-O {[%clk 0:04:11.3]} 16. a5 {[%clk 0:03:27.4]}
16... Rdg8 {[%clk 0:04:09.1]} 17. g3 {[%clk 0:03:04.1]} 17... h4 {[%clk
0:04:07.6]} 18. Bg2 {[%clk 0:02:54.2]} 18... hxg3 {[%clk 0:04:05.6]} 19. fxg3
{[%clk 0:02:48.9]} 19... Ng4 {[%clk 0:04:03.9]} 20. Nf3 {[%clk 0:02:34]} 20...
Nxh2 {[%clk 0:03:48.6]} 21. Nxh2 {[%clk 0:02:32.1]} 21... Bxg3 {[%clk
0:03:47.5]} 22. Ng4 {[%clk 0:02:13.5]} 22... Rxg4 {[%clk 0:03:44.2]} 23. Rxf6
{[%clk 0:01:56.6]} 23... Be5 {[%clk 0:03:33.2]} 24. Rf5 {[%clk 0:01:50.9]} 24...
Bh2+ {[%clk 0:03:19.8]} 25. Kf1 {[%clk 0:01:48.4]} 25... Rhg8 {[%clk 0:03:16.9]}
26. Ra2 {[%clk 0:01:39.3]} 26... Qd6 {[%clk 0:02:55.3]} 27. Qf3 {[%clk
0:01:26.9]} 27... Qa6+ {[%clk 0:02:45.8]} 28. Ke1 {[%clk 0:01:12.9]} 28... Qc4
{[%clk 0:02:33.5]} 29. Rxf7 {[%clk 0:01:02.3]} 29... Bf4 {[%clk 0:01:48.2]} 30.
Bh3 {[%clk 0:00:55]} 30... Qxa2 {[%clk 0:01:38.1]} 31. Bxg4+ {[%clk 0:00:53.6]}
31... Kb8 {[%clk 0:01:37.4]} 32. Qxf4 {[%clk 0:00:51.4]} 32... Qa1+ {[%clk
0:01:33.9]} 33. Kf2 {[%clk 0:00:46.2]} 33... Qb2+ {[%clk 0:01:30.5]} 34. Kf3
{[%clk 0:00:41.1]} 34... Qxc3+ {[%clk 0:01:28.4]} 35. Qe3 {[%clk 0:00:39.8]}
35... Qxb4 {[%clk 0:01:24]} 36. Rf8+ {[%clk 0:00:37.9]} 36... Qxf8+ {[%clk
0:01:22.4]} 37. Ke2 {[%clk 0:00:35.9]} 37... Rxg4 {[%clk 0:01:20]} 0-1

[Event "Live Chess"]
[Site "Chess.com"]
[Date "2023.05.21"]
[Round "-"]
[White "yarek"]
[Black "KeithArkell"]
[Result "0-1"]
[WhiteElo "1872"]
[BlackElo "2556"]
[TimeControl "300"]
[EndTime "21:14:54 PDT"]
[Termination "KeithArkell won by checkmate"]

1. e4 {[%clk 0:04:56.9]} 1... c6 {[%clk 0:04:47.3]} 2. d4 {[%clk 0:04:54.6]}
2... d5 {[%clk 0:04:46.6]} 3. exd5 {[%clk 0:04:53.7]} 3... cxd5 {[%clk
0:04:45.9]} 4. Bd3 {[%clk 0:04:53]} 4... Nf6 {[%clk 0:04:45.2]} 5. c3 {[%clk
0:04:52]} 5... Nc6 {[%clk 0:04:44.9]} 6. Bf4 {[%clk 0:04:49.2]} 6... Bg4 {[%clk
0:04:44.2]} 7. Nf3 {[%clk 0:04:47]} 7... e6 {[%clk 0:04:42.3]} 8. Nbd2 {[%clk
0:04:44.9]} 8... Bd6 {[%clk 0:04:41.4]} 9. Bxd6 {[%clk 0:04:42.8]} 9... Qxd6
{[%clk 0:04:41.3]} 10. h3 {[%clk 0:04:41.7]} 10... Bxf3 {[%clk 0:04:38.2]} 11.
Nxf3 {[%clk 0:04:39.4]} 11... O-O {[%clk 0:04:37.4]} 12. O-O {[%clk 0:04:36.8]}
12... Rab8 {[%clk 0:04:36.5]} 13. a4 {[%clk 0:04:26.7]} 13... Rfc8 {[%clk
0:04:32.3]} 14. Re1 {[%clk 0:04:23]} 14... Qc7 {[%clk 0:04:30.6]} 15. Ne5 {[%clk
0:04:20]} 15... Nxe5 {[%clk 0:04:29.6]} 16. dxe5 {[%clk 0:04:14.9]} 16... Nd7
{[%clk 0:04:28.3]} 17. Qh5 {[%clk 0:04:10.1]} 17... g6 {[%clk 0:04:27.1]} 18.
Qg5 {[%clk 0:04:05]} 18... Qd8 {[%clk 0:04:26]} 19. Qg3 {[%clk 0:03:57.4]} 19...
Nc5 {[%clk 0:04:24.3]} 20. Bc2 {[%clk 0:03:51.5]} 20... a5 {[%clk 0:04:19.8]}
21. h4 {[%clk 0:03:49.3]} 21... b5 {[%clk 0:04:18]} 22. h5 {[%clk 0:03:47.3]}
22... Kg7 {[%clk 0:04:17.5]} 23. hxg6 {[%clk 0:03:26.4]} 23... hxg6 {[%clk
0:04:14.6]} 24. b3 {[%clk 0:02:57.2]} 24... bxa4 {[%clk 0:04:13]} 25. bxa4
{[%clk 0:02:56]} 25... Rb2 {[%clk 0:04:11.5]} 26. Bd1 {[%clk 0:02:36.5]} 26...
Qe7 {[%clk 0:04:11.1]} 27. f4 {[%clk 0:02:19.2]} 27... Rh8 {[%clk 0:04:09.7]}
28. Bg4 {[%clk 0:02:13.4]} 28... Qh4 {[%clk 0:04:08.2]} 29. Re3 {[%clk 0:02:05]}
29... Qh1# {[%clk 0:04:00.7]} 0-1

[Event "Live Chess"]
[Site "Chess.com"]
[Date "2023.05.21"]
[Round "-"]
[White "BostonStrangler"]
[Black "tpm07"]
[Result "0-1"]
[WhiteElo "2059"]
[BlackElo "1955"]
[TimeControl "300"]
[EndTime "21:17:16 PDT"]
[Termination "tpm07 won by resignation"]

1. Nf3 {[%clk 0:04:57.6]} 1... d5 {[%clk 0:04:57.2]} 2. c4 {[%clk 0:04:56.1]}
2... d4 {[%clk 0:04:55.2]} 3. g3 {[%clk 0:04:53.1]} 3... f6 {[%clk 0:04:53.8]}
4. Bg2 {[%clk 0:04:50.4]} 4... e5 {[%clk 0:04:53.2]} 5. e3 {[%clk 0:04:47.9]}
5... Nc6 {[%clk 0:04:48.8]} 6. O-O {[%clk 0:04:44.1]} 6... Be6 {[%clk
0:04:38.3]} 7. d3 {[%clk 0:04:37.8]} 7... Qd7 {[%clk 0:04:35]} 8. exd4 {[%clk
0:04:34.5]} 8... exd4 {[%clk 0:04:31.1]} 9. Re1 {[%clk 0:04:31.7]} 9... O-O-O
{[%clk 0:04:29.9]} 10. a3 {[%clk 0:04:25.2]} 10... Bh3 {[%clk 0:04:27.9]} 11.
Bh1 {[%clk 0:04:23.7]} 11... h5 {[%clk 0:04:27.2]} 12. b4 {[%clk 0:04:21.6]}
12... h4 {[%clk 0:04:24.5]} 13. b5 {[%clk 0:04:17.2]} 13... Ne5 {[%clk 0:04:14]}
14. Nxe5 {[%clk 0:04:11]} 14... fxe5 {[%clk 0:04:13.9]} 15. Qf3 {[%clk
0:03:57.9]} 15... c6 {[%clk 0:03:50.6]} 16. bxc6 {[%clk 0:03:51.5]} 16... bxc6
{[%clk 0:03:49]} 17. Rxe5 {[%clk 0:03:44.5]} 17... Bd6 {[%clk 0:03:44.2]} 18.
Re4 {[%clk 0:03:14.2]} 18... hxg3 {[%clk 0:03:37.6]} 19. hxg3 {[%clk 0:03:09.4]}
19... Nf6 {[%clk 0:03:36.2]} 20. Rxd4 {[%clk 0:03:03.3]} 20... Bg4 {[%clk
0:03:19]} 21. Qxc6+ {[%clk 0:03:01.4]} 21... Qxc6 {[%clk 0:03:18.1]} 22. Bxc6
{[%clk 0:02:59.4]} 22... Be5 {[%clk 0:02:57.2]} 23. Rxd8+ {[%clk 0:02:44.5]}
23... Rxd8 {[%clk 0:02:57.1]} 24. Ra2 {[%clk 0:02:40.1]} 24... Rxd3 {[%clk
0:02:50.8]} 25. Rd2 {[%clk 0:02:38.7]} 25... Rb3 {[%clk 0:02:44.4]} 0-1

[Event "Live Chess"]
[Site "Chess.com"]
[Date "2023.05.21"]
[Round "-"]
[White "Conradical12"]
[Black "LutherSullivan"]
[Result "0-1"]
[WhiteElo "1649"]
[BlackElo "2195"]
[TimeControl "300"]
[EndTime "21:17:39 PDT"]
[Termination "LutherSullivan won by resignation"]

1. e4 {[%clk 0:04:57.2]} 1... c5 {[%clk 0:04:57.5]} 2. Nf3 {[%clk 0:04:55.1]}
2... Nc6 {[%clk 0:04:57.1]} 3. Bc4 {[%clk 0:04:53.1]} 3... e6 {[%clk 0:04:55.4]}
4. O-O {[%clk 0:04:51.5]} 4... d5 {[%clk 0:04:55]} 5. exd5 {[%clk 0:04:50.5]}
5... exd5 {[%clk 0:04:54.6]} 6. Re1+ {[%clk 0:04:49.8]} 6... Be6 {[%clk
0:04:53.7]} 7. Bb5 {[%clk 0:04:47.5]} 7... Be7 {[%clk 0:04:52.3]} 8. Bxc6+
{[%clk 0:04:42.5]} 8... bxc6 {[%clk 0:04:50.7]} 9. d4 {[%clk 0:04:42.4]} 9...
Nf6 {[%clk 0:04:43.2]} 10. Ne5 {[%clk 0:04:39.2]} 10... Qc7 {[%clk 0:04:40.1]}
11. Bf4 {[%clk 0:04:35.6]} 11... Qb6 {[%clk 0:04:18.8]} 12. Qe2 {[%clk
0:04:11.9]} 12... cxd4 {[%clk 0:04:10.1]} 13. Nxf7 {[%clk 0:04:09.8]} 13... Ne4
{[%clk 0:04:01.3]} 14. Nxh8 {[%clk 0:03:59.7]} 14... d3 {[%clk 0:03:56.1]} 15.
cxd3 {[%clk 0:03:56.2]} 15... Bg4 {[%clk 0:03:51.1]} 16. Qe3 {[%clk 0:03:31.5]}
16... Bc5 {[%clk 0:03:47.5]} 17. Qxe4+ {[%clk 0:03:06.3]} 17... dxe4 {[%clk
0:03:45.3]} 18. Rxe4+ {[%clk 0:03:04.1]} 18... Kf8 {[%clk 0:03:41.8]} 19. Nc3
{[%clk 0:02:50.5]} 19... Qxb2 {[%clk 0:03:34.1]} 20. Rae1 {[%clk 0:02:43]} 20...
Bxf2+ {[%clk 0:03:31.3]} 21. Kf1 {[%clk 0:02:40.3]} 21... Bxe1 {[%clk
0:03:29.8]} 22. Rxe1 {[%clk 0:02:39.8]} 22... Qxc3 {[%clk 0:03:27]} 23. Bd6+
{[%clk 0:02:34.9]} 23... Kg8 {[%clk 0:03:24.9]} 0-1

[Event "Live Chess"]
[Site "Chess.com"]
[Date "2023.05.21"]
[Round "-"]
[White "raminguy"]
[Black "matt1979"]
[Result "1-0"]
[WhiteElo "1951"]
[BlackElo "1493"]
[TimeControl "300"]
[EndTime "21:17:44 PDT"]
[Termination "raminguy won by resignation"]

1. d4 {[%clk 0:04:59.2]} 1... e6 {[%clk 0:04:57.9]} 2. Nc3 {[%clk 0:04:55.9]}
2... Bb4 {[%clk 0:04:53.5]} 3. Bf4 {[%clk 0:04:53.8]} 3... f5 {[%clk 0:04:51.7]}
4. e3 {[%clk 0:04:51.3]} 4... Nf6 {[%clk 0:04:49.4]} 5. Bd3 {[%clk 0:04:48.9]}
5... O-O {[%clk 0:04:47.6]} 6. Nf3 {[%clk 0:04:47.1]} 6... d6 {[%clk 0:04:40.9]}
7. O-O {[%clk 0:04:45.4]} 7... Bxc3 {[%clk 0:04:39.7]} 8. bxc3 {[%clk 0:04:44]}
8... Ne4 {[%clk 0:04:37.1]} 9. Bxe4 {[%clk 0:04:42.7]} 9... fxe4 {[%clk
0:04:35.2]} 10. Nd2 {[%clk 0:04:41.3]} 10... d5 {[%clk 0:04:32]} 11. c4 {[%clk
0:04:40.1]} 11... c6 {[%clk 0:04:30.1]} 12. cxd5 {[%clk 0:04:38.6]} 12... exd5
{[%clk 0:04:28.4]} 13. c4 {[%clk 0:04:38.5]} 13... Be6 {[%clk 0:04:22.4]} 14.
Qb3 {[%clk 0:04:36.3]} 14... Qd7 {[%clk 0:04:18.2]} 15. cxd5 {[%clk 0:04:29.2]}
15... cxd5 {[%clk 0:04:15.4]} 16. Rac1 {[%clk 0:04:25.6]} 16... Na6 {[%clk
0:04:10.2]} 17. Be5 {[%clk 0:04:17.8]} 17... Rac8 {[%clk 0:04:06.4]} 18. Rfd1
{[%clk 0:04:02.5]} 18... Rxc1 {[%clk 0:03:58.5]} 19. Rxc1 {[%clk 0:04:00.9]}
19... Rc8 {[%clk 0:03:54.9]} 20. Rxc8+ {[%clk 0:03:55.7]} 20... Qxc8 {[%clk
0:03:53.4]} 21. h3 {[%clk 0:03:48.1]} 21... Qc1+ {[%clk 0:03:51.2]} 22. Nf1
{[%clk 0:03:45.3]} 22... Qc6 {[%clk 0:03:44.2]} 23. Qa3 {[%clk 0:03:35.6]} 23...
Qd7 {[%clk 0:03:34.6]} 24. Ng3 {[%clk 0:03:21.6]} 24... Nc7 {[%clk 0:03:25.5]}
25. Qxa7 {[%clk 0:03:17.3]} 25... Nb5 {[%clk 0:03:23.3]} 26. Qb8+ {[%clk
0:03:13]} 26... Kf7 {[%clk 0:03:19.3]} 27. Nh5 {[%clk 0:03:08.5]} 27... g6
{[%clk 0:03:14.8]} 28. Nf4 {[%clk 0:03:06.8]} 28... Bf5 {[%clk 0:03:10.7]} 29.
Qh8 {[%clk 0:03:04.6]} 29... Qe6 {[%clk 0:02:58.7]} 30. Nxe6 {[%clk 0:03:02.2]}
1-0

[Event "Live Chess"]
[Site "Chess.com"]
[Date "2023.05.21"]
[Round "-"]
[White "chessfiction"]
[Black "ViktorTheCoolBoy"]
[Result "1-0"]
[WhiteElo "2364"]
[BlackElo "2476"]
[TimeControl "300"]
[EndTime "21:18:22 PDT"]
[Termination "chessfiction won by resignation"]

1. e4 {[%clk 0:04:57.5]} 1... c5 {[%clk 0:04:57]} 2. d4 {[%clk 0:04:56.8]} 2...
cxd4 {[%clk 0:04:54.7]} 3. c3 {[%clk 0:04:56.7]} 3... e5 {[%clk 0:04:53.4]} 4.
Nf3 {[%clk 0:04:52.2]} 4... Nc6 {[%clk 0:04:52]} 5. Bc4 {[%clk 0:04:51.3]} 5...
Nf6 {[%clk 0:04:49.8]} 6. Ng5 {[%clk 0:04:50.7]} 6... d5 {[%clk 0:04:48.2]} 7.
exd5 {[%clk 0:04:50.6]} 7... Na5 {[%clk 0:04:46.6]} 8. Bb5+ {[%clk 0:04:43.7]}
8... Bd7 {[%clk 0:04:45.1]} 9. a4 {[%clk 0:04:41.7]} 9... Bxb5 {[%clk
0:04:41.3]} 10. axb5 {[%clk 0:04:41.6]} 10... Nc4 {[%clk 0:04:31.2]} 11. O-O
{[%clk 0:04:28.5]} 11... Qxd5 {[%clk 0:04:27.4]} 12. cxd4 {[%clk 0:04:27.3]}
12... exd4 {[%clk 0:04:14.5]} 13. Qe2+ {[%clk 0:04:12.6]} 13... Be7 {[%clk
0:04:12.2]} 14. Re1 {[%clk 0:04:12]} 14... O-O {[%clk 0:03:29.9]} 15. Qxe7
{[%clk 0:04:08.9]} 15... Rfe8 {[%clk 0:03:25.4]} 16. Qb4 {[%clk 0:04:08.4]}
16... Rxe1+ {[%clk 0:03:00.4]} 17. Qxe1 {[%clk 0:04:08.3]} 17... Re8 {[%clk
0:02:59.3]} 18. Qf1 {[%clk 0:04:04.5]} 18... d3 {[%clk 0:02:53.7]} 19. Nc3
{[%clk 0:04:00.2]} 19... Qf5 {[%clk 0:02:52.4]} 20. Nf3 {[%clk 0:03:48.2]} 20...
Rd8 {[%clk 0:02:45.8]} 21. Be3 {[%clk 0:03:43.6]} 21... d2 {[%clk 0:02:41.8]}
22. Qxc4 {[%clk 0:03:40.3]} 22... Qc2 {[%clk 0:02:33.3]} 23. Rd1 {[%clk
0:03:32.9]} 1-0